bitfinex/quotes_ETHUSD_20260209
["timestamp","ask_amount","ask_price","bid_price","bid_amount"]
[1770661238366,2.32823686,2126.8,2125.1,2.32632903]
[1770661238367,2.32823686,2126.6,2125.2,1.17635987]
[1770661238568,2.32823686,2126.4,2125.2,1.17635987]
[1770661238777,2.32823686,2126.2,2125.1,1.17641436]
[1770661239147,2.32823686,2126.2,2125.3,0.001]
[1770661239371,2.32823686,2126.2,2125.0,1.1764354]
[1770661239738,2.32823686,2126.2,2125.1,1.17640481]
[1770661240053,2.32823686,2126.2,2125.1,1.17640685]
[1770661240258,2.32823686,2126.0,2124.9,0.001]
[1770661240642,2.38906553,2126.0,2124.9,0.001]
[1770661241359,2.32823686,2126.0,2124.9,0.001]
[1770661241689,2.38906553,2126.0,2124.9,0.001]
[1770661242183,1.17597252,2125.9,2124.9,0.001]
[1770661242389,2.32823686,2125.8,2124.9,0.001]
[1770661242603,0.06082867,2125.5,2124.6,0.001]
[1770661242783,2.32823686,2125.3,2124.6,0.001]
[1770661244747,3.50459673,2125.2,2124.6,0.001]
[1770661246279,3.50459673,2125.2,2124.4,0.001]
[1770661246280,2.32266949,2125.1,2124.4,0.001]
[1770661246468,2.38349816,2125.1,2124.1,0.001]
[1770661247279,2.32266949,2124.9,2124.1,0.001]
[1770661247459,3.286,2124.8,2124.1,0.001]
[1770661248179,2.32266949,2124.7,2124.1,0.001]
[1770661248373,2.32266949,2124.7,2123.8,0.001]
[1770661249495,2.32266949,2124.5,2123.8,0.001]
[1770661250069,1.17652595,2124.9,2123.8,0.001]
[1770661250300,3.287,2124.8,2123.8,0.001]
[1770661250482,3.287,2124.8,2124.0,0.001]
[1770661251677,4.46358271,2124.8,2124.0,0.001]
[1770661254093,3.287,2124.8,2124.0,0.001]
[1770661254398,4.46358537,2124.8,2124.0,0.001]
[1770661255396,4.46458537,2124.8,2124.0,0.001]
[1770661257317,4.7059734,2125.0,2124.0,0.001]
[1770661257800,7.9939734,2125.0,2124.0,0.001]
[1770661258201,4.46447058,2125.0,2124.0,0.001]
[1770661259075,3.288,2125.0,2124.0,0.001]
[1770661259975,4.4644711,2125.0,2124.0,0.001]
[1770661260497,4.4644714,2125.0,2124.0,0.001]
[1770661260892,3.288,2125.0,2124.0,0.001]
[1770661261091,1.17597252,2125.9,2124.0,2.63558376]
[1770661261315,2.32266949,2125.6,2124.3,0.1024]
[1770661261478,2.32266949,2125.2,2124.2,1.17691366]
[1770661261800,5.61066949,2125.1,2124.2,1.17691366]
[1770661262002,2.32266949,2125.0,2124.0,1.17800275]
[1770661262188,2.32266949,2125.0,2124.0,0.001]
[1770661262601,2.32266949,2125.0,2124.0,1.1779891]
[1770661262791,2.32266949,2125.0,2124.0,0.001]
[1770661262992,2.32266949,2125.0,2124.2,0.001]
[1770661263410,0.002,2124.8,2124.2,0.001]
[1770661266211,0.002,2125.0,2124.2,2.29961346]
[1770661266390,1.17847527,2125.0,2124.2,0.001]
[1770661266591,0.002,2125.0,2124.2,2.29961346]
[1770661267720,0.002,2125.0,2124.3,1.17685825]
[1770661268018,2.32266949,2124.8,2124.0,0.001]
[1770661268203,1.01222911,2124.7,2124.0,0.001]
[1770661268386,2.38349816,2124.7,2124.0,0.001]
[1770661268588,2.32266949,2124.7,2124.0,0.001]
[1770661269011,2.32266949,2124.5,2124.0,0.001]
[1770661269915,2.32266949,2124.3,2123.8,0.001]
[1770661270212,6.62349993,2124.2,2123.8,0.001]
[1770661270418,5.61066949,2124.2,2123.8,0.001]
[1770661270619,1.01323273,2124.1,2123.8,0.001]
[1770661270804,5.61066949,2124.2,2123.8,0.001]
[1770661271534,2.32266949,2124.0,2123.4,0.001]
[1770661271815,2.32266949,2123.6,2123.1,0.001]
[1770661271985,2.38349816,2123.4,2122.3,1.17796429]
[1770661272189,3.33615704,2123.3,2122.0,2.29861346]
[1770661272488,3.33447926,2123.2,2122.1,0.24506164]
[1770661272688,2.32266949,2122.8,2121.1,2.29861346]
[1770661272916,2.32266949,2122.8,2120.4,1.41480825]
[1770661272917,2.32266949,2121.8,2119.9,7.01575828]
[1770661273127,1.72433627,2122.3,2119.4,16.50603451]
[1770661273128,3.35723505,2123.2,2121.6,2.29861346]
[1770661273336,5.88595375,2123.7,2122.5,2.29861346]
[1770661273486,2.32266949,2124.1,2122.7,0.06082867]
[1770661273692,11.4583223,2123.7,2121.4,1.17846705]
[1770661273924,2.32266949,2123.0,2121.3,4.7138682]
[1770661274129,11.4583223,2122.7,2121.6,1.68105781]
[1770661274332,2.32266949,2121.7,2120.5,0.16309942]
[1770661274546,0.06082867,2121.2,2120.5,1.1789324]
[1770661274696,2.32266949,2121.5,2120.5,3.36211562]
[1770661275000,2.32266949,2121.5,2119.7,9.75571767]
[1770661275001,0.06082867,2120.8,2119.7,9.75571767]
[1770661275196,0.06082867,2120.8,2119.1,2.43871466]
[1770661275197,0.06082867,2120.3,2119.1,0.1401012]
[1770661275390,2.38349816,2120.5,2119.1,0.1401012]
[1770661275391,0.06082867,2119.9,2119.1,0.1401012]
[1770661275697,2.81340335,2119.2,2117.7,3.37149385]
[1770661275888,1.17982684,2119.0,2117.8,4.72180129]
[1770661276089,1.17982684,2119.0,2118.0,4.0]
[1770661276090,11.4583223,2118.7,2118.0,4.0]
[1770661276486,9.17115375,2118.6,2118.0,4.0]
[1770661276720,11.4583223,2119.2,2118.0,4.0]
[1770661277024,10.31096697,2118.8,2118.0,3.82212632]
[1770661277198,3.35182867,2118.7,2118.0,3.82212632]
[1770661277400,0.06082867,2118.1,2116.5,2.64884052]
[1770661277612,0.06082867,2118.2,2116.5,2.64884052]
[1770661277817,0.06082867,2118.2,2116.4,1.21544433]
[1770661277818,1.18063754,2117.5,2116.4,1.21544433]
[1770661278015,1.18063754,2117.5,2116.4,0.03420159]
[1770661278016,0.06082867,2117.0,2116.4,0.03420159]
[1770661278215,3.35182867,2116.9,2116.4,0.03420159]
[1770661278418,1.88115375,2117.1,2116.4,1.21545067]
[1770661278647,0.24523917,2117.7,2116.4,1.21545067]
[1770661278949,10.37179564,2118.8,2116.6,0.2335703]
[1770661279244,10.31096697,2119.5,2117.4,2.65839122]
[1770661279547,3.292,2119.4,2118.8,0.2451651]
[1770661279747,3.293,2119.3,2118.8,0.2451651]
[1770661279949,1.17941218,2119.7,2118.8,0.2451651]
[1770661280115,0.06082867,2119.5,2117.8,4.72185586]
[1770661280316,0.06082867,2118.5,2116.6,4.7244498]
[1770661280542,2.74459528,2118.7,2116.6,4.7244498]
[1770661280543,3.293,2118.4,2116.6,7.28044102]
[1770661280754,10.31096697,2118.8,2116.7,0.2335703]
[1770661280935,3.35382867,2118.7,2116.8,0.1024]
[1770661281266,3.293,2118.6,2117.1,0.2335703]
[1770661281426,0.06082867,2118.9,2117.2,0.1024]
[1770661281626,0.06082867,2118.2,2116.5,1.18119536]
[1770661281830,0.06082867,2117.6,2116.4,0.03420159]
[1770661282028,11.49143726,2117.8,2116.4,0.03420159]
[1770661282212,0.06082867,2117.5,2116.4,1.21543986]
[1770661282413,3.86399522,2118.3,2116.4,1.21543986]
[1770661282730,1.17991315,2118.8,2116.7,0.1024]
[1770661282931,3.294,2118.7,2117.0,0.2335703]
[1770661283249,0.06082867,2118.4,2116.6,0.3359703]
[1770661283544,3.294,2118.3,2116.6,0.3359703]
[1770661283723,0.06082867,2118.2,2116.5,0.1024]
[1770661283923,1.18041456,2117.9,2116.6,1.18113956]
[1770661284160,0.06082867,2117.7,2116.5,1.18118651]
[1770661284373,0.06082867,2117.5,2116.4,0.03420159]
[1770661284517,0.06082867,2116.8,2115.9,1.18152119]
[1770661284712,3.295,2116.7,2115.9,1.18148828]
[1770661284950,3.295,2116.7,2115.9,1.1315247]
[1770661284951,0.06082867,2116.6,2115.9,1.1315247]
[1770661285156,0.06082867,2117.1,2115.2,1.41829568]
[1770661285315,0.06082867,2116.7,2114.8,0.142975]
[1770661285516,3.295,2116.9,2115.1,4.72783944]
[1770661285747,10.31096697,2117.7,2116.5,1.18118905]
[1770661285958,3.296,2117.9,2116.3,0.3359703]
[1770661286165,0.06082867,2117.4,2116.0,4.72478147]
[1770661286354,0.06082867,2117.6,2116.0,4.72478147]
[1770661286553,0.06082867,2117.8,2116.1,0.2335703]
[1770661286758,0.06082867,2117.2,2116.0,4.72478147]
[1770661286949,0.06082867,2117.4,2116.0,1.18147448]
[1770661287149,0.06082867,2117.0,2115.9,1.1814888]
[1770661287455,3.35782867,2116.9,2115.9,1.1814888]
[1770661287661,0.06082867,2117.4,2115.9,1.1814888]
[1770661287859,1.18052604,2117.7,2115.9,1.1814888]
[1770661288166,3.297,2117.6,2116.0,0.2335703]
[1770661288370,0.06082867,2117.5,2115.8,4.72612127]
[1770661288541,1.24102033,2118.3,2115.9,2.89196152]
[1770661288741,1.18011752,2118.5,2116.3,2.78956152]
[1770661288936,1.18011752,2118.5,2116.6,2.55599122]
[1770661289142,0.002,2118.2,2116.8,0.1024]
[1770661289337,0.002,2118.2,2116.6,2.55599122]
[1770661289669,0.002,2118.2,2116.7,2.89196152]
[1770661289900,0.002,2118.2,2117.0,0.2335703]
[1770661290077,0.002,2118.2,2116.8,1.18102796]
[1770661290241,0.06082867,2117.7,2116.2,0.001]
[1770661290443,3.297,2117.6,2116.7,1.18104679]
[1770661290744,0.002,2118.2,2116.7,1.18104679]
[1770661290745,0.002,2118.2,2116.8,0.2335703]
[1770661291147,0.002,2118.2,2116.7,1.18104679]
[1770661291347,0.002,2118.2,2116.8,0.1024]
[1770661291668,0.002,2118.2,2116.7,1.18104679]
[1770661291669,0.06082867,2118.1,2116.7,1.18104679]
[1770661291993,3.298,2118.0,2116.7,1.18104679]
[1770661292193,0.002,2118.2,2116.7,0.2335703]
[1770661292540,1.18225971,2118.2,2116.5,4.72433504]
[1770661292749,1.24308838,2118.2,2116.5,4.72433504]
[1770661293141,1.18225971,2118.2,2116.5,4.72433504]
[1770661293338,3.298,2118.1,2116.5,4.72433504]
[1770661293565,1.24308838,2118.2,2116.5,4.72433504]
[1770661293771,3.298,2118.0,2116.5,4.72433504]
[1770661293976,3.298,2117.9,2116.5,4.72433504]
[1770661294177,0.06082867,2117.7,2116.4,4.72433504]
[1770661294355,1.24129896,2117.8,2116.4,4.72433504]
[1770661294546,0.002,2118.2,2116.5,2.55599122]
[1770661294919,0.002,2118.2,2117.0,0.1024]
[1770661295178,0.002,2118.2,2117.2,0.1024]
[1770661295546,3.298,2118.1,2116.6,2.55599122]
[1770661295743,3.298,2118.1,2116.7,0.1024]
[1770661296096,3.298,2118.1,2116.4,4.72433504]
[1770661296261,1.18047029,2117.8,2116.2,0.001]
[1770661296598,13.60896697,2118.1,2116.2,2.55699122]
[1770661296599,1.1803031,2118.1,2116.2,2.55699122]
[1770661296750,3.298,2117.7,2116.2,2.55699122]
[1770661297259,2.68376661,2117.9,2116.2,0.001]
[1770661297576,1.1803031,2118.1,2116.2,0.001]
[1770661297577,0.06082867,2117.6,2116.2,0.001]
[1770661297947,0.06082867,2117.4,2116.2,0.001]
[1770661298154,0.06082867,2117.2,2116.2,0.001]
[1770661298357,1.18086061,2117.1,2116.2,0.001]
[1770661298981,0.06082867,2116.6,2116.2,0.001]
[1770661299150,0.06082867,2117.0,2116.0,0.001]
[1770661299347,3.299,2116.5,2116.0,0.001]
[1770661299551,0.06082867,2116.9,2116.0,0.001]
[1770661299764,3.299,2116.8,2116.0,0.001]
[1770661300060,1.18086061,2117.1,2116.0,0.001]
[1770661300061,3.35982867,2116.7,2116.0,0.001]
[1770661300388,7.46794658,2117.2,2116.0,0.001]
[1770661300389,2.68376661,2117.2,2116.0,0.001]
[1770661300593,3.299,2116.6,2116.0,0.001]
[1770661300764,3.299,2116.5,2116.0,0.001]
[1770661301389,0.06082867,2116.1,2115.1,0.001]
[1770661301601,0.06082867,2116.0,2115.1,0.001]
[1770661302280,12.99473358,2116.8,2115.3,0.001]
[1770661302448,1.18113956,2116.6,2115.3,0.001]
[1770661302651,3.299,2116.5,2115.3,0.001]
[1770661302849,4.72335253,2117.2,2115.4,0.1024]
[1770661303068,3.299,2117.1,2115.4,0.1024]
[1770661303270,0.06082867,2116.6,2115.3,0.001]
[1770661303479,2.68376661,2117.0,2115.3,0.001]
[1770661303677,15.0343195,2117.2,2115.3,0.001]
[1770661303678,3.299,2116.9,2115.3,0.001]
[1770661304068,4.72335253,2117.2,2115.3,2.79056152]
[1770661304381,0.06082867,2117.0,2115.3,0.001]
[1770661304882,0.06082867,2116.2,2115.3,0.001]
[1770661305100,0.06082867,2116.6,2115.3,0.001]
[1770661305295,3.3,2116.1,2115.3,0.001]
[1770661305493,3.3,2116.0,2115.3,0.001]
[1770661305802,0.06082867,2116.8,2115.3,0.001]
[1770661306002,0.06082867,2116.4,2115.3,0.001]
[1770661306603,0.06082867,2116.6,2115.3,0.001]
[1770661306773,1.24219149,2116.2,2115.3,0.001]
[1770661307175,1.18108376,2116.8,2115.3,0.001]
[1770661307581,15.03415933,2117.3,2115.3,0.001]
[1770661307582,1.18079152,2117.3,2115.4,2.86486591]
[1770661307791,3.301,2117.2,2115.4,2.86486591]
[1770661307974,0.06082867,2117.6,2115.4,2.86486591]
[1770661307975,1.18061473,2117.6,2115.7,0.3359703]
[1770661308175,1.18061473,2117.6,2115.4,0.1024]
[1770661308176,0.06082867,2116.9,2115.3,3.36311562]
[1770661308509,3.301,2116.8,2115.3,2.76346591]
[1770661308730,4.7239431,2116.9,2115.3,0.001]
[1770661309010,0.06082867,2116.5,2115.3,0.001]
[1770661309226,0.06082867,2116.3,2115.3,0.001]
[1770661309404,0.06082867,2115.7,2115.3,0.001]
[1770661309578,3.301,2115.6,2115.3,0.001]
[1770661309776,0.06082867,2115.4,2115.1,0.001]
[1770661309993,0.06082867,2115.5,2114.8,1.32508243]
[1770661310194,3.301,2115.4,2114.9,1.18207901]
[1770661310623,2.79833553,2116.3,2114.9,1.18207901]
[1770661310921,1.18136282,2116.2,2114.9,1.18207901]
[1770661311228,3.301,2116.1,2114.9,1.18207901]
[1770661311419,0.06082867,2116.5,2114.9,1.18207901]
[1770661311621,4.48225118,2116.4,2114.9,1.18207901]
[1770661311823,0.06082867,2116.1,2114.8,1.32508485]
[1770661312000,0.06082867,2115.6,2114.8,0.02131766]
[1770661312331,0.06082867,2116.1,2114.8,0.02131766]
[1770661312534,2.73750686,2114.8,2114.0,4.73018368]
[1770661312732,0.06082867,2115.7,2113.1,3.36211562]
[1770661312733,3.301,2114.7,2113.6,4.73123152]
[1770661313030,3.301,2114.6,2113.4,7.49398792]
[1770661313432,3.301,2114.5,2113.4,7.49398792]
[1770661313605,3.301,2114.5,2113.6,0.2335703]
[1770661313809,3.301,2114.5,2113.5,0.1024]
[1770661314009,1.18175372,2115.6,2113.5,2.86486591]
[1770661314314,3.302,2115.5,2113.7,2.76246591]
[1770661314520,3.302,2115.5,2113.8,0.1024]
[1770661314722,10.31096697,2116.2,2114.0,1.28499224]
[1770661314918,4.78663648,2116.1,2114.2,0.1024]
[1770661315121,3.302,2116.0,2114.2,0.1024]
[1770661315327,0.06082867,2115.7,2114.2,0.1024]
[1770661315622,3.36282867,2115.9,2114.2,0.1024]
[1770661315823,7.52414334,2116.1,2114.2,0.1024]
[1770661316030,0.06082867,2115.9,2114.2,0.1024]
[1770661316232,0.06082867,2115.5,2114.0,1.18259224]
[1770661316551,3.302,2115.4,2114.0,1.18259224]
[1770661316715,2.73750686,2116.4,2114.1,3.09843621]
[1770661316905,0.06082867,2115.9,2114.1,2.86486591]
[1770661317106,3.302,2115.8,2114.2,2.99603621]
[1770661317341,3.302,2115.8,2114.3,0.3359703]
[1770661317544,3.91875804,2116.4,2114.3,3.15926488]
[1770661317749,3.302,2115.7,2114.3,2.86486591]
[1770661318042,1.24207985,2116.4,2114.6,0.2335703]
[1770661318251,3.302,2116.3,2114.6,0.2335703]
[1770661318419,3.302,2116.3,2114.5,0.1024]
[1770661318619,0.06082867,2116.2,2114.5,0.1024]
[1770661318950,1.18139912,2116.2,2114.6,1.18225669]
[1770661319126,1.24222779,2116.2,2114.6,1.18225669]
[1770661319329,1.18139912,2116.2,2114.6,1.18225669]
[1770661319526,1.18133828,2116.3,2114.7,0.3359703]
[1770661319747,7.46241894,2116.5,2114.6,3.9447226]
[1770661319748,1.24212099,2116.4,2114.6,3.9447226]
[1770661319926,0.06082867,2116.2,2114.7,0.1024]
[1770661320136,3.36282867,2116.1,2114.6,1.18225669]
[1770661320335,3.302,2116.1,2114.6,1.18225669]
[1770661320537,1.18129232,2116.4,2114.7,0.2335703]
[1770661320741,1.18129232,2116.4,2114.6,1.18225669]
[1770661320742,0.06082867,2116.1,2114.6,1.18225669]
[1770661320941,3.302,2116.0,2114.6,1.18225669]
[1770661321154,0.06082867,2115.7,2114.6,1.18225669]
[1770661321529,2.79833553,2115.5,2113.5,2.76246591]
[1770661321746,2.79833553,2114.9,2113.3,0.001]
[1770661321964,0.06082867,2114.6,2113.8,1.18266761]
[1770661322278,10.37179564,2115.3,2114.2,1.18243664]
[1770661322279,0.06082867,2115.2,2114.2,1.18243664]
[1770661322437,3.302,2114.5,2113.3,0.001]
[1770661322956,4.48431498,2114.5,2113.3,0.001]
[1770661323626,3.303,2114.4,2113.3,0.001]
[1770661323826,1.18220078,2114.7,2113.3,0.001]
[1770661324059,3.303,2114.3,2113.3,0.001]
[1770661324226,4.72853885,2114.9,2113.3,0.001]
[1770661324430,0.06082867,2114.6,2113.3,0.001]
[1770661324832,3.303,2114.5,2113.3,0.001]
[1770661325029,1.18197721,2115.1,2113.3,2.99703621]
[1770661325230,1.18197721,2115.1,2113.3,2.76346591]
[1770661325231,0.06082867,2115.0,2113.3,2.76346591]
[1770661325431,3.36382867,2115.0,2113.3,0.1034]
[1770661325636,1.18197721,2115.1,2113.4,0.2335703]
[1770661325859,3.303,2115.0,2113.4,2.99603621]
[1770661326073,2.79833553,2114.9,2113.3,0.001]
[1770661326258,3.303,2114.8,2113.5,2.76246591]
[1770661326643,3.303,2114.8,2113.4,0.1024]
[1770661326848,0.002,2114.6,2113.5,1.18287201]
[1770661327237,0.002,2114.6,2113.6,2.99603621]
[1770661327439,3.305,2114.6,2113.6,2.76246591]
[1770661327667,3.305,2114.6,2113.5,1.18287201]
[1770661327867,0.002,2114.6,2113.5,1.18287201]
[1770661328067,10.31096697,2116.3,2114.1,2.86486591]
[1770661328238,3.36382867,2116.2,2114.3,2.76246591]
[1770661328439,10.37179564,2115.9,2113.9,0.06082867]
[1770661328668,3.303,2115.8,2114.1,2.86486591]
[1770661328864,3.303,2115.8,2114.2,1.18248037]
[1770661328865,4.48461638,2115.8,2114.2,1.18248037]
[1770661329546,0.06082867,2115.6,2114.2,1.18248037]
[1770661329749,7.28295191,2115.8,2114.2,1.18248037]
[1770661329950,0.06082867,2115.3,2114.2,1.18248037]
[1770661330142,0.06082867,2115.3,2113.8,4.73060494]
[1770661330341,0.06082867,2115.1,2114.1,1.18253559]
[1770661330674,2.73750686,2115.3,2114.1,1.18253559]
[1770661330974,1.181642,2115.7,2113.5,2.92569458]
[1770661331177,1.18146263,2116.1,2114.1,2.76246591]
[1770661331374,0.06082867,2115.8,2114.1,2.76246591]
[1770661331542,0.06082867,2115.6,2113.7,0.16322867]
[1770661331869,2.79833553,2115.8,2113.7,0.16322867]
[1770661332038,2.79833553,2115.8,2113.7,2.92569458]
[1770661332242,1.18146263,2116.1,2114.0,2.99603621]
[1770661332442,1.18146263,2116.1,2114.3,0.1024]
[1770661332674,3.303,2116.0,2114.3,0.1024]
[1770661332845,10.31096697,2116.6,2114.5,2.76246591]
[1770661333044,3.303,2116.5,2114.7,2.86486591]
[1770661333284,0.06082867,2116.4,2114.7,2.86486591]
[1770661333462,3.303,2116.5,2114.6,1.18225669]
[1770661333648,3.303,2116.4,2114.7,2.86486591]
[1770661333856,3.303,2116.4,2114.6,1.18225669]
[1770661334244,3.303,2116.3,2114.6,3.9447226]
[1770661335092,1.18136282,2116.2,2114.6,3.9447226]
[1770661335579,1.24219149,2116.2,2114.6,1.18225669]
[1770661335780,1.18136282,2116.2,2114.6,1.18225669]
[1770661335958,2.73750686,2116.8,2114.6,4.04049388]
[1770661335959,3.303,2116.1,2114.6,4.04049388]
[1770661336278,3.303,2116.1,2114.6,1.18225669]
[1770661336480,0.06082867,2116.0,2114.6,1.18225669]
[1770661336663,2.76342995,2115.7,2114.6,1.18225669]
[1770661336977,2.70260128,2115.7,2114.6,1.18225669]
[1770661337180,0.06082867,2115.6,2114.0,2.85823719]
[1770661337476,3.303,2115.6,2113.9,1.18264818]
[1770661337645,2.76342995,2115.9,2113.9,4.04088537]
[1770661337850,3.303,2115.5,2114.0,2.85823719]
[1770661338559,3.303,2115.5,2113.9,1.18264818]
[1770661339061,0.06082867,2115.8,2113.9,1.18264818]
[1770661339265,0.06082867,2115.6,2113.8,4.73059274]
[1770661339459,0.06082867,2115.6,2113.8,4.73159274]
[1770661339651,3.303,2115.5,2113.8,4.73159274]
[1770661339851,0.06082867,2115.6,2113.8,4.73159274]
[1770661340050,3.303,2115.5,2113.8,4.73159274]
[1770661340258,3.303,2115.4,2113.8,7.37430916]
[1770661340574,3.303,2115.3,2113.9,2.64271642]
[1770661341080,3.303,2115.2,2113.9,2.64271642]
[1770661341293,1.18197721,2115.1,2114.0,1.18259224]
[1770661341452,1.24280588,2115.1,2114.0,1.18259224]
[1770661341785,3.303,2115.0,2114.0,1.18259224]
[1770661342804,1.18180958,2115.4,2114.0,1.18259224]
[1770661343179,1.18153031,2115.9,2114.0,3.82530866]
[1770661343430,1.18153031,2115.9,2114.1,2.64271642]
[1770661343627,0.002,2116.1,2114.7,2.70354509]
[1770661343779,3.303,2116.0,2114.7,2.70354509]
[1770661343986,7.58638207,2117.0,2115.0,0.1024]
[1770661344198,2.86255688,2116.8,2115.2,0.1024]
[1770661344801,2.86255688,2116.8,2114.9,0.2335703]
[1770661344802,2.92338555,2116.8,2114.9,0.1024]
[1770661344984,2.86255688,2116.6,2114.9,0.1024]
[1770661345179,1.18092412,2117.0,2115.0,1.18203309]
[1770661345180,2.86255688,2116.9,2115.0,1.18203309]
[1770661345401,2.92338555,2116.7,2115.0,1.18203309]
[1770661345717,2.86255688,2116.5,2115.0,1.18203309]
[1770661345891,3.303,2116.4,2115.0,1.18203309]
[1770661346092,4.04336171,2117.2,2115.3,0.06082867]
[1770661346410,2.92338555,2116.7,2115.0,1.18203309]
[1770661346917,2.86255688,2116.7,2115.0,1.18203309]
[1770661347089,1.18080483,2117.2,2115.5,0.1024]
[1770661347090,2.86255688,2117.2,2115.5,0.1024]
[1770661347411,2.86255688,2117.0,2115.6,1.18169786]
[1770661347719,2.92338555,2117.0,2115.5,4.72679145]
[1770661347915,2.92338555,2116.6,2115.5,1.18172235]
[1770661348127,2.86255688,2116.6,2115.5,1.18172235]
[1770661348706,2.92338555,2116.5,2115.5,1.18175256]
[1770661348884,2.86255688,2116.5,2115.5,1.18175256]
[1770661349084,2.86255688,2117.0,2115.5,1.18175256]
[1770661349389,1.18119536,2116.5,2115.0,0.1024]
[1770661349591,7.34670264,2116.6,2115.0,0.1024]
[1770661350211,2.86255688,2116.2,2114.7,4.72857953]
[1770661350926,4.54497443,2116.6,2114.7,4.72857953]
[1770661350927,2.86255688,2116.0,2114.7,4.72857953]
[1770661351296,2.86255688,2115.7,2114.2,4.72990233]
[1770661351623,2.86255688,2115.5,2114.1,1.1825363]
[1770661351828,2.86255688,2115.3,2114.1,1.1825363]
[1770661352331,4.04414304,2115.8,2114.1,1.1825363]
[1770661352500,2.86255688,2115.8,2114.1,1.1825363]
[1770661352829,1.1815568,2115.9,2114.2,0.001]
[1770661352830,6.16455688,2115.7,2114.2,0.001]
[1770661353022,2.86255688,2115.7,2114.2,0.001]
[1770661353221,1.18175372,2115.5,2114.2,0.001]
[1770661353520,2.86255688,2115.4,2114.2,0.001]
[1770661353831,2.86255688,2115.2,2114.2,0.001]
[1770661354728,1.18175372,2115.5,2114.2,0.001]
[1770661355034,3.303,2115.4,2114.2,0.001]
[1770661355230,1.18186545,2115.3,2114.2,0.001]
[1770661355527,2.86255688,2115.2,2114.2,0.001]
[1770661356508,3.303,2115.1,2114.2,0.001]
[1770661356910,1.18171574,2115.6,2114.2,0.001]
[1770661357120,3.303,2115.5,2114.2,0.001]
[1770661357321,1.18180958,2115.4,2114.2,0.001]
[1770661357638,4.10519513,2115.4,2114.2,0.001]
[1770661357827,4.04436646,2115.4,2114.2,0.001]
[1770661358025,2.86255688,2115.3,2114.2,0.001]
[1770661358232,2.86255688,2114.8,2114.2,0.001]
[1770661358440,3.303,2114.7,2114.2,0.001]
[1770661358941,0.06082867,2115.2,2114.2,0.001]
[1770661358942,2.86255688,2115.2,2114.2,0.001]
[1770661359143,3.303,2115.1,2114.2,0.001]
[1770661359336,6.16555688,2115.1,2114.2,0.001]
[1770661359509,1.18203309,2115.0,2114.2,0.001]
[1770661359709,4.04458997,2115.0,2114.2,0.001]
[1770661361012,4.48499683,2115.1,2114.2,0.001]
[1770661361236,3.303,2115.0,2114.2,0.001]
[1770661361628,4.48505759,2115.0,2114.2,0.001]
[1770661361954,2.86255688,2114.5,2113.8,0.001]
[1770661362242,2.86255688,2114.5,2113.5,0.001]
[1770661362243,2.86255688,2114.2,2113.5,0.001]
[1770661362410,3.303,2114.1,2113.5,0.001]
[1770661362815,5.29765597,2115.5,2113.5,2.47222883]
[1770661363114,3.303,2115.4,2114.0,0.06082867]
[1770661363334,3.303,2115.4,2114.2,0.06082867]
[1770661363640,3.303,2115.4,2114.1,1.1825363]
[1770661363825,3.303,2115.4,2114.2,0.06082867]
[1770661364429,1.18135021,2116.3,2114.4,0.1024]
[1770661364631,3.304,2116.2,2114.4,0.1024]
[1770661365222,3.304,2116.2,2114.4,0.16322867]
[1770661365424,3.304,2116.2,2114.1,1.1825363]
[1770661365425,2.80036551,2116.1,2114.1,1.1825363]
[1770661365623,2.73953684,2115.6,2114.0,4.73014521]
[1770661365834,3.303,2115.6,2114.2,0.2335703]
[1770661366339,6.04253684,2115.6,2114.4,0.001]
[1770661367736,7.22426848,2115.6,2114.4,0.001]
[1770661368136,7.22423704,2115.6,2114.4,0.001]
[1770661368436,3.303,2115.5,2114.4,0.001]
[1770661369623,1.18180958,2115.4,2114.4,0.001]
[1770661369851,2.73953684,2115.3,2114.4,0.001]
[1770661370054,2.73953684,2115.1,2114.4,0.001]
[1770661370851,3.303,2115.1,2114.4,0.001]
[1770661371023,2.73953684,2115.9,2114.4,0.001]
[1770661371218,7.22409785,2115.9,2114.4,0.001]
[1770661371543,2.80036551,2115.6,2114.4,0.001]
[1770661371843,3.92129056,2115.5,2114.4,0.001]
[1770661372149,2.73953684,2115.4,2114.4,0.001]
[1770661373053,2.73953684,2115.8,2114.4,0.001]
[1770661373426,4.72797808,2116.0,2114.4,2.86274522]
[1770661373429,0.002,2116.0,2114.4,2.86274522]
[1770661373644,0.002,2116.0,2114.8,2.62817492]
[1770661373960,0.002,2116.0,2114.9,1.18208898]
[1770661374125,2.73953684,2117.0,2115.2,2.62817492]
[1770661374324,2.73953684,2116.8,2115.0,0.1024]
[1770661374932,2.73953684,2116.8,2115.0,2.96749505]
[1770661375536,7.22331686,2117.3,2115.4,2.73738287]
[1770661375740,7.22331686,2117.3,2115.5,1.18175372]
[1770661375741,2.73953684,2117.0,2115.5,1.18175372]
[1770661375953,2.80036551,2116.9,2115.5,1.18175372]
[1770661376457,2.73953684,2116.6,2115.5,1.18175372]
[1770661376950,2.73953684,2117.0,2115.5,1.18175372]
[1770661377737,1.18097217,2116.9,2115.4,4.72701489]
[1770661378133,1.18097217,2116.9,2115.3,4.72701489]
[1770661378134,0.06082867,2116.7,2115.3,4.72701489]
[1770661378347,2.73953684,2116.8,2115.3,4.72701489]
[1770661378954,2.73953684,2116.6,2115.3,4.72701489]
[1770661380138,3.9207322,2116.5,2115.0,4.72757196]
[1770661380340,2.73953684,2117.1,2115.2,2.94453451]
[1770661380540,2.73953684,2117.1,2115.3,2.75253554]
[1770661380941,2.73953684,2117.1,2115.4,0.06082867]
[1770661381143,0.002,2116.4,2115.5,0.1024]
[1770661381552,0.002,2116.4,2115.4,0.06082867]
[1770661381758,0.002,2116.4,2114.9,1.18208898]
[1770661381759,2.74153684,2116.4,2114.9,1.18208898]
[1770661382067,3.92095548,2116.1,2114.6,0.001]
[1770661382432,2.73953684,2115.7,2114.6,0.001]
[1770661383265,3.9209383,2116.2,2114.6,0.001]
[1770661383462,7.2229383,2116.2,2114.6,0.001]
[1770661383663,2.73953684,2116.1,2114.6,0.001]